bitfinex/quotes_SOLUSD_20250529
["timestamp","ask_amount","ask_price","bid_price","bid_amount"]
[1748537479852,27.33656755,169.0,168.95,9.7]
[1748537480094,27.33656755,169.0,168.96,21.41940779]
[1748537481156,5.91715976,169.0,168.95,9.7]
[1748537481358,5.91715976,169.0,168.97,21.41940779]
[1748537483864,5.91680965,169.01,168.97,21.41940779]
[1748537487990,5.91645959,169.02,168.98,21.41940779]
[1748537489286,27.33586738,169.02,168.98,21.41940779]
[1748537489880,27.33586738,169.02,168.95,9.7]
[1748537490078,21.41940779,168.99,168.95,9.7]
[1748537490289,21.41940779,168.99,168.95,31.11940779]
[1748537490481,21.41940779,169.01,168.96,21.41940779]
[1748537491883,5.91715976,169.0,168.96,21.41940779]
[1748537492095,5.91715976,169.0,168.97,21.41940779]
[1748537494169,5.91715976,169.0,168.95,9.7]
[1748537494371,27.33656755,169.0,168.96,21.41940779]
[1748537494609,27.33656755,169.0,168.93,5.91954214]
[1748537494610,27.33656755,169.0,168.93,26.0]
[1748537494785,21.41940779,168.99,168.94,21.41940779]
[1748537495097,27.33656755,169.0,168.95,21.41940779]
[1748537499203,27.33656755,169.0,168.93,26.0]
[1748537499409,27.33656755,169.0,168.95,21.41940779]
[1748537501189,27.33656755,169.0,168.96,21.41940779]
[1748537501584,27.33656755,169.0,168.93,31.9194677]
[1748537501795,27.33656755,169.0,168.96,21.41940779]
[1748537502807,27.33656755,169.0,168.95,21.41940779]
[1748537503310,5.91715976,169.0,168.96,21.41940779]
[1748537503506,5.91715976,169.0,168.97,21.41940779]
[1748537503685,21.41940779,168.99,168.93,31.91939804]
[1748537503885,5.9178601,168.98,168.95,21.41940779]
[1748537504316,5.9178601,168.98,168.93,31.91939804]
[1748537504483,5.9178601,168.98,168.95,21.41940779]
[1748537505296,21.41940779,168.99,168.95,21.41940779]
[1748537505297,6.34329436,169.01,168.95,21.41940779]
[1748537505501,21.41940779,169.0,168.95,21.41940779]
[1748537506791,21.41940779,169.0,168.96,21.41940779]
[1748537507391,5.91750991,168.99,168.96,21.41940779]
[1748537507702,5.91750991,168.99,168.95,21.41940779]
[1748537508421,27.3369177,168.99,168.95,21.41940779]
[1748537508993,27.3369177,168.99,168.93,26.0]
[1748537508994,27.3369177,168.99,168.94,21.41940779]
[1748537509201,21.41940779,168.98,168.93,47.41940779]
[1748537509632,5.91821033,168.97,168.93,26.0]
[1748537509803,5.91821033,168.97,168.93,47.41940779]
[1748537511119,21.41940779,168.94,168.91,26.0]
[1748537511440,21.41940779,168.92,168.85,21.41940779]
[1748537511592,21.41940779,168.89,168.82,23.82896242]
[1748537511796,5.91999655,168.92,168.82,23.82896242]
[1748537511797,5.91999655,168.92,168.87,21.41940779]
[1748537512111,5.91999655,168.92,168.84,31.01940779]
[1748537512112,21.41940779,168.89,168.84,31.01940779]
[1748537512313,21.41940779,168.87,168.82,45.24837021]
[1748537512494,21.41940779,168.86,168.82,45.24837021]
[1748537512701,21.41940779,168.86,168.82,23.82896242]
[1748537512905,21.41940779,168.85,168.82,23.82896242]
[1748537513116,45.07613357,168.89,168.82,23.82896242]
[1748537513313,21.41940779,168.83,168.82,23.82896242]
[1748537513518,22.31425182,168.84,168.82,23.82896242]
[1748537513721,42.12714136,168.83,168.8,50.0]
[1748537513922,42.12714136,168.83,168.76,50.0]
[1748537513923,26.0,168.81,168.76,50.0]
[1748537514103,0.42648471,168.8,168.76,50.0]
[1748537514398,19.07613357,168.77,168.76,50.0]
[1748537514598,56.15613357,168.77,168.76,50.0]
[1748537514907,65.91613357,168.77,168.76,49.5]
[1748537515296,19.07613357,168.77,168.76,49.0737]
[1748537515494,62.30135724,168.77,168.76,49.0737]
[1748537515694,25.00135724,168.77,168.76,49.0737]
[1748537515926,45.07613357,168.77,168.76,49.0737]
[1748537516117,19.07613357,168.77,168.76,49.0737]
[1748537516323,21.8458925,168.77,168.76,49.0737]
[1748537516631,40.21121822,168.77,168.76,49.0737]
[1748537516796,87.91494915,168.77,168.76,49.0737]
[1748537516991,87.91494915,168.77,168.74,0.1754386]
[1748537516992,0.28432314,168.76,168.74,0.1754386]
[1748537517217,45.07613357,168.75,168.74,0.1754386]
[1748537517741,78.99554136,168.75,168.74,0.1754386]
[1748537518522,100.41494915,168.75,168.74,0.1754386]
[1748537518713,63.50205949,168.75,168.74,0.1754386]
[1748537518911,106.34087507,168.75,168.74,0.1754386]
[1748537519714,122.9044776,168.75,168.74,0.1754386]
[1748537519921,144.32388539,168.75,168.74,0.1754386]
[1748537520221,65.4705056,168.75,168.74,0.1754386]
[1748537521029,65.4705056,168.75,168.74,6.10171571]
[1748537521203,65.4705056,168.75,168.74,0.1754386]
[1748537521610,65.4705056,168.75,168.74,27.5211235]
[1748537521940,21.41940779,168.82,168.74,53.5211235]
[1748537522153,21.41940779,168.82,168.77,21.41940779]
[1748537522809,21.41940779,168.82,168.74,26.1754386]
[1748537523014,21.41940779,168.82,168.77,21.41940779]
[1748537523410,21.41940779,168.81,168.77,21.41940779]
[1748537523837,44.56318652,168.83,168.74,26.1754386]
[1748537524145,21.41940779,168.82,168.77,21.41940779]
[1748537524344,65.98259431,168.83,168.78,21.41940779]
[1748537524508,44.56318652,168.83,168.78,21.41940779]
[1748537524908,21.41940779,168.82,168.78,21.41940779]
[1748537525142,10.62,168.85,168.8,21.41940779]
[1748537525359,21.41940779,168.86,168.81,21.41940779]
[1748537525714,21.41940779,168.84,168.79,21.41940779]
[1748537526619,21.41940779,168.81,168.76,10.62]
[1748537527119,21.41940779,168.77,168.74,0.1754386]
[1748537527533,21.41940779,168.76,168.74,0.1754386]
[1748537528132,27.34512653,168.76,168.74,0.1754386]
[1748537528327,5.92571874,168.76,168.74,0.1754386]
[1748537528535,21.41940779,168.75,168.74,0.1754386]
[1748537529734,27.34533371,168.75,168.74,0.1754386]
[1748537530322,5.92592592,168.75,168.74,0.1754386]
[1748537530526,27.34533371,168.75,168.74,0.1754386]
[1748537531361,27.77181842,168.75,168.74,0.1754386]
[1748537531527,93.84087507,168.75,168.74,0.1754386]
[1748537532235,19.07613357,168.74,168.72,749.60646689]
[1748537532450,21.8458925,168.73,168.72,749.60646689]
[1748537532766,40.49554136,168.73,168.72,607.77505126]
[1748537533258,71.91494915,168.73,168.72,592.17339901]
[1748537533489,29.07613357,168.73,168.72,575.25248997]
[1748537533636,71.91494915,168.73,168.72,575.25248997]
[1748537533837,107.40294715,168.73,168.72,575.25248997]
[1748537534139,69.7084001,168.73,168.72,542.9584073]
[1748537534461,69.7084001,168.73,168.72,203.64391446]
[1748537534462,215.53905775,168.73,168.72,203.64391446]
[1748537534668,215.53905775,168.73,168.72,154.44372391]
[1748537534959,215.53905775,168.73,168.72,21.66002958]
[1748537535131,215.53905775,168.73,168.68,49.02092978]
[1748537535132,78.933972,168.69,168.68,49.02092978]
[1748537535339,0.42648471,168.61,168.59,50.0]
[1748537535566,60.6658925,168.6,168.59,50.0]
[1748537535869,66.5970906,168.6,168.59,50.0]
[1748537536071,65.24648471,168.6,168.59,50.0]
[1748537536241,65.24648471,168.6,168.51,0.1754386]
[1748537536242,26.0,168.55,168.51,0.1754386]
[1748537536435,45.17768281,168.6,168.43,50.0]
[1748537536436,26.0,168.51,168.43,50.0]
[1748537536639,35.48333416,168.49,168.43,85.19901102]
[1748537536934,0.14216157,168.49,168.43,50.0]
[1748537537254,10.0,168.45,168.35,11.12]
[1748537537448,39.14,168.44,168.38,26.0]
[1748537537650,11.12,168.52,168.38,26.0]
[1748537537651,10.0,168.52,168.44,18.64964886]
[1748537537853,26.14216157,168.53,168.41,61.19901102]
[1748537537854,41.93385116,168.53,168.41,46.31901102]
[1748537538041,39.16,168.51,168.5,35.19901102]
[1748537538345,10.0,168.49,168.48,35.19901102]
[1748537538546,10.0,168.49,168.41,33.91181043]
[1748537538733,39.16,168.48,168.42,0.85687946]
[1748537538933,49.16,168.48,168.42,0.85687946]
[1748537539366,10.0,168.45,168.43,35.19901102]
[1748537539579,49.14,168.44,168.41,7.91181043]
[1748537539742,49.14,168.44,168.41,13.84962171]
[1748537539743,39.14,168.44,168.41,13.84962171]
[1748537539940,39.14,168.44,168.43,35.19901102]
[1748537540139,39.14,168.44,168.41,7.91181043]
[1748537540567,39.14,168.44,168.43,35.19901102]
[1748537540863,49.14,168.44,168.43,35.19901102]
[1748537541063,10.0,168.47,168.43,35.19901102]
[1748537541283,39.14,168.46,168.42,18.64964886]
[1748537541578,39.14,168.47,168.42,18.64964886]
[1748537541879,39.14,168.47,168.46,35.19901102]
[1748537542079,39.14,168.47,168.45,35.19901102]
[1748537542287,10.0,168.44,168.41,7.91181043]
[1748537542465,39.12,168.43,168.39,6.3627]
[1748537542659,39.12,168.43,168.41,35.19901102]
[1748537542861,39.12,168.43,168.39,6.3627]
[1748537543158,39.12,168.43,168.41,35.19901102]
[1748537543352,49.12,168.43,168.39,6.3627]
[1748537543547,10.0,168.42,168.39,41.56171102]
[1748537543742,10.0,168.42,168.39,6.3627]
[1748537544175,10.0,168.42,168.4,35.19901102]
[1748537544362,10.0,168.43,168.41,35.19901102]
[1748537544671,5.93617628,168.46,168.41,35.19901102]
[1748537544672,49.08,168.42,168.41,35.19901102]
[1748537544875,39.08,168.42,168.39,6.3627]
[1748537545249,10.0,168.4,168.39,6.3627]
[1748537545947,39.08,168.42,168.39,41.56171102]
[1748537545948,49.04,168.42,168.39,41.56171102]
[1748537546142,49.04,168.42,168.41,35.19901102]
[1748537546362,49.04,168.42,168.39,6.3627]
[1748537546646,10.0,168.4,168.39,6.3627]
[1748537546973,10.0,168.4,168.38,36.84721102]
[1748537547142,39.04,168.42,168.38,7.58703573]
[1748537547455,39.06,168.44,168.41,35.19901102]
[1748537547651,10.0,168.46,168.39,18.64964886]
[1748537547845,49.06,168.46,168.45,35.19901102]
[1748537548051,10.0,168.47,168.45,35.19901102]
[1748537548354,11.12,168.54,168.41,35.19901102]
[1748537548355,10.0,168.49,168.46,35.19901102]
[1748537548556,35.19901102,168.52,168.48,35.19901102]
[1748537548557,10.0,168.52,168.48,35.19901102]
[1748537548756,10.0,168.5,168.46,6.2129]
[1748537548961,10.0,168.5,168.49,35.19901102]
[1748537549472,10.0,168.54,168.49,35.19901102]
[1748537549664,10.0,168.54,168.53,35.19901102]
[1748537550175,39.26,168.54,168.53,35.19901102]
[1748537550359,49.26,168.55,168.53,35.19901102]
[1748537550558,10.0,168.56,168.54,35.19901102]
[1748537550760,10.0,168.6,168.55,35.19901102]
[1748537550977,10.0,168.6,168.59,35.19901102]
[1748537551365,39.24,168.6,168.59,35.19901102]
[1748537551560,49.24,168.6,168.59,35.19901102]
[1748537552264,39.22,168.6,168.59,35.19901102]
[1748537552680,10.0,168.61,168.59,35.19901102]
[1748537552857,39.22,168.6,168.55,31.93285134]
[1748537553181,39.22,168.6,168.59,35.19901102]
[1748537553686,39.18,168.6,168.59,35.19901102]
[1748537554884,45.1111981,168.6,168.55,26.0]
[1748537555183,45.1111981,168.6,168.59,35.19901102]
[1748537555483,10.0,168.58,168.52,61.19901102]
[1748537555676,10.0,168.58,168.57,35.19901102]
[1748537556274,15.93190176,168.58,168.52,26.0]
[1748537556478,15.93190176,168.58,168.55,35.19901102]
[1748537556479,10.0,168.56,168.55,35.19901102]
[1748537556690,10.0,168.55,168.54,35.19901102]
[1748537557659,49.14,168.56,168.54,35.19901102]
[1748537557865,49.14,168.56,168.49,11.14]
[1748537558058,49.14,168.56,168.52,35.19901102]
[1748537558263,10.0,168.55,168.52,35.19901102]
[1748537558486,15.93325765,168.55,168.54,35.19901102]
[1748537559778,15.93325765,168.55,168.49,11.14]
[1748537559981,10.0,168.53,168.49,11.14]
[1748537560187,39.36,168.54,168.52,35.19901102]
[1748537560393,49.36,168.55,168.53,35.19901102]
[1748537560593,49.36,168.55,168.54,35.19901102]
[1748537561289,49.36,168.55,168.53,35.19901102]
[1748537561481,49.36,168.55,168.54,35.19901102]
[1748537561984,49.36,168.55,168.53,35.19901102]
[1748537562173,10.0,168.54,168.53,35.19901102]
[1748537562369,49.36,168.55,168.53,35.19901102]
[1748537562573,10.0,168.54,168.53,35.19901102]
[1748537562890,10.0,168.54,168.5,1.6456]
[1748537563263,10.0,168.54,168.52,35.19901102]
[1748537563465,10.0,168.54,168.53,35.19901102]
[1748537564393,55.29304952,168.55,168.53,35.19901102]
[1748537564693,10.0,168.54,168.5,1.6456]
[1748537565073,10.0,168.54,168.5,7.5802985]
[1748537565690,10.0,168.54,168.5,1.6456]
[1748537565898,10.0,168.54,168.53,35.19901102]
[1748537566697,49.36,168.55,168.53,35.19901102]
[1748537566995,10.0,168.54,168.5,1.6456]
[1748537567186,55.29299732,168.55,168.53,35.19901102]
[1748537567368,39.36,168.55,168.53,35.19901102]
[1748537567564,10.0,168.54,168.52,35.19901102]
[1748537568505,10.0,168.51,168.44,1.5271]
[1748537568800,39.26,168.5,168.44,1.5271]
[1748537568989,49.26,168.5,168.49,35.19901102]
[1748537569183,39.26,168.5,168.49,35.19901102]
[1748537573202,39.26,168.5,168.47,5.93568845]
[1748537573386,39.26,168.5,168.49,35.19901102]
[1748537575380,5.93370645,168.53,168.49,35.19901102]
[1748537575381,10.0,168.53,168.49,41.13400386]
[1748537575702,39.12,168.52,168.49,5.93499284]
[1748537575881,39.12,168.52,168.47,24.58542377]
[1748537577013,39.12,168.52,168.51,35.19901102]
[1748537577881,10.0,168.55,168.51,35.19901102]
[1748537578081,10.0,168.55,168.54,35.19901102]
[1748537578392,49.06,168.55,168.54,35.19901102]
[1748537578603,10.0,168.55,168.54,35.19901102]
[1748537578781,11.18,168.61,168.54,35.19901102]
[1748537578782,10.0,168.56,168.54,35.19901102]
[1748537578981,49.04,168.55,168.52,5.93389741]
[1748537579191,39.04,168.54,168.5,5.9347181]
[1748537580102,39.02,168.53,168.5,5.9347181]
[1748537580282,39.02,168.53,168.52,35.19901102]
[1748537581508,10.0,168.5,168.44,1.5271]
[1748537581713,10.0,168.46,168.41,6.94163965]
[1748537581918,39.02,168.45,168.44,35.19901102]
[1748537582300,44.95647966,168.45,168.44,35.19901102]
[1748537583315,44.95647966,168.45,168.41,6.94163965]
[1748537583508,44.95647966,168.45,168.44,35.19901102]
[1748537583815,49.02,168.45,168.44,35.19901102]
[1748537584511,10.0,168.45,168.44,35.19901102]
[1748537584731,49.0,168.45,168.44,35.19901102]
[1748537584902,39.0,168.45,168.44,35.19901102]
[1748537585093,49.0,168.45,168.44,35.19901102]
[1748537585893,49.0,168.45,168.44,124.89901102]
[1748537587922,49.0,168.45,168.44,89.7]
[1748537588217,49.0,168.45,168.44,124.89901102]
[1748537588801,49.0,168.45,168.44,89.7]
[1748537589002,49.0,168.45,168.44,124.89901102]
[1748537590017,49.0,168.45,168.44,89.7]
[1748537590192,54.93647966,168.45,168.43,35.19901102]
[1748537590718,54.93647966,168.45,168.44,35.19901102]
[1748537590925,10.0,168.44,168.41,0.76273965]
[1748537591217,38.9,168.43,168.42,35.19901102]
[1748537592603,10.0,168.44,168.42,35.19901102]
[1748537592805,38.88,168.43,168.41,6.70057406]
[1748537593020,10.0,168.44,168.42,35.19901102]
[1748537593325,10.0,168.44,168.41,6.70057406]
[1748537593326,38.88,168.43,168.41,6.70057406]
[1748537594218,38.88,168.43,168.42,35.19901102]
[1748537594594,38.88,168.43,168.41,0.76273965]
[1748537595107,38.88,168.43,168.42,35.19901102]
[1748537595303,10.0,168.42,168.41,35.96175067]
[1748537596403,15.9375371,168.42,168.41,35.96175067]
[1748537596708,10.0,168.42,168.41,35.96175067]
[1748537597792,48.88,168.43,168.41,35.96175067]
[1748537598107,48.88,168.43,168.42,35.19901102]
[1748537598921,54.81718458,168.43,168.42,35.19901102]
[1748537600324,54.81718458,168.43,168.41,0.76273965]
[1748537600527,10.0,168.37,168.35,6.5059]
[1748537600733,49.26,168.36,168.33,1.5746]
[1748537600908,49.26,168.36,168.35,35.19901102]
[1748537602226,49.26,168.36,168.3,24.59136765]
[1748537602410,49.26,168.36,168.3,50.59136765]
[1748537602605,10.0,168.36,168.35,34.19901102]
[1748537602811,49.2,168.36,168.35,34.19901102]
[1748537603005,10.0,168.36,168.35,34.19901102]
[1748537603218,39.2,168.36,168.35,34.19901102]
[1748537603921,10.0,168.38,168.35,34.19901102]
[1748537604103,10.0,168.38,168.37,35.19901102]
[1748537604303,10.0,168.39,168.37,35.19901102]
[1748537604503,10.0,168.4,168.38,41.13789527]
[1748537604733,39.16,168.39,168.38,5.93888425]
[1748537604895,39.16,168.4,168.38,35.19901102]
[1748537605097,10.0,168.42,168.38,35.19901102]
[1748537605098,39.16,168.41,168.38,35.19901102]
[1748537605300,10.0,168.41,168.4,35.19901102]
[1748537605537,49.14,168.41,168.37,18.64964886]
[1748537605700,49.14,168.41,168.4,35.19901102]
[1748537606408,10.0,168.42,168.4,35.19901102]
[1748537606649,10.0,168.42,168.41,35.19901102]
[1748537606937,10.0,168.42,168.37,18.64964886]
[1748537606938,49.12,168.42,168.37,18.64964886]
[1748537607112,10.0,168.41,168.36,33.8203]
[1748537607300,10.0,168.41,168.39,35.19901102]
[1748537607627,10.0,168.4,168.39,35.19901102]
[1748537608535,15.93824228,168.4,168.39,35.19901102]
[1748537610446,10.0,168.4,168.39,35.19901102]
[1748537610911,5.93797503,168.41,168.39,35.19901102]
[1748537610912,10.0,168.41,168.39,35.19901102]
[1748537611103,39.06,168.4,168.37,5.93923311]
[1748537611305,39.06,168.4,168.39,35.19901102]
[1748537611715,10.0,168.41,168.39,35.19901102]
[1748537611925,39.04,168.41,168.4,35.19901102]
[1748537612330,49.04,168.41,168.4,35.19901102]
[1748537612512,10.0,168.43,168.4,35.19901102]
[1748537612712,10.0,168.47,168.42,35.19901102]
[1748537612913,10.0,168.47,168.46,35.19901102]
[1748537613130,16.1977,168.46,168.25,269.01718315]
[1748537613322,16.1977,168.46,168.25,29.71718315]
[1748537613323,10.0,168.36,168.25,29.71718315]
[1748537613537,49.1,168.36,168.25,29.71718315]
[1748537613851,49.1,168.36,168.3,35.19901102]
[1748537614044,39.1,168.36,168.35,35.19901102]
[1748537614216,10.0,168.38,168.35,35.19901102]
[1748537614554,49.14,168.38,168.37,35.19901102]
[1748537614861,49.12,168.38,168.37,35.19901102]
[1748537615015,39.12,168.38,168.37,35.19901102]
[1748537615341,49.12,168.38,168.37,35.19901102]
[1748537615509,39.12,168.38,168.37,35.19901102]
[1748537616515,10.0,168.4,168.37,35.19901102]
[1748537616843,49.1,168.4,168.39,35.19901102]
[1748537617017,10.0,168.4,168.39,35.19901102]
[1748537617220,49.1,168.4,168.39,35.19901102]
[1748537617719,39.1,168.4,168.39,35.19901102]
[1748537617920,49.1,168.4,168.39,35.19901102]
[1748537619130,49.1,168.4,168.36,18.64964886]
[1748537619439,55.03824228,168.4,168.39,35.19901102]
[1748537620429,49.1,168.4,168.39,35.19901102]
[1748537620921,55.03824228,168.4,168.39,35.19901102]
[1748537621931,45.03824228,168.4,168.39,35.19901102]
[1748537622130,10.0,168.39,168.38,35.19901102]
[1748537622518,15.93859492,168.39,168.38,35.19901102]
[1748537623641,39.1,168.4,168.38,35.19901102]
[1748537623642,10.0,168.4,168.38,35.19901102]
[1748537623834,10.0,168.4,168.39,35.19901102]
[1748537623835,48.96,168.4,168.39,35.19901102]
[1748537624140,54.89824228,168.4,168.39,35.19901102]
[1748537624443,54.89824228,168.4,168.36,18.64964886]
[1748537624444,48.96,168.4,168.36,18.64964886]
[1748537624633,48.96,168.4,168.39,35.19901102]
[1748537624634,38.96,168.4,168.39,35.19901102]
[1748537624947,38.94,168.4,168.39,35.19901102]
[1748537625144,48.94,168.4,168.39,35.19901102]
[1748537625842,48.94,168.4,168.36,18.64964886]
[1748537626026,10.0,168.39,168.36,18.64964886]
[1748537626342,10.0,168.39,168.38,35.19901102]
[1748537626531,15.93859492,168.39,168.38,35.19901102]
[1748537626929,30.78508224,168.39,168.33,89.7]
[1748537627259,10.0,168.35,168.31,8.1737]
[1748537627458,10.0,168.35,168.33,35.19901102]
[1748537627459,38.92,168.34,168.33,35.19901102]
[1748537628636,38.92,168.34,168.33,53.84865988]
[1748537629041,38.92,168.34,168.33,35.19901102]
[1748537629350,38.92,168.34,168.32,18.64964886]
[1748537629553,38.92,168.34,168.33,35.19901102]
[1748537631536,38.92,168.34,168.33,53.84865988]
[1748537632054,10.0,168.37,168.34,18.64964886]
[1748537632220,10.0,168.37,168.36,35.19901102]
[1748537632424,49.02,168.37,168.36,35.19901102]
[1748537633238,54.95930035,168.37,168.36,35.19901102]
[1748537633650,54.91930035,168.37,168.36,35.19901102]
[1748537633948,48.98,168.37,168.36,35.19901102]
[1748537634130,54.91930035,168.37,168.36,35.19901102]
[1748537634531,48.98,168.37,168.36,35.19901102]
[1748537635141,10.0,168.36,168.32,18.64964886]
[1748537635346,38.94,168.35,168.32,18.64964886]
[1748537636347,38.92,168.36,168.35,18.64964886]
[1748537636544,10.0,168.38,168.35,18.64964886]
[1748537636545,10.0,168.39,168.36,18.64964886]
[1748537636744,10.0,168.4,168.38,21.63532096]
[1748537636951,48.9,168.4,168.39,21.63532096]
[1748537637133,48.9,168.4,168.36,18.64964886]
[1748537637336,48.9,168.4,168.39,21.63532096]
[1748537638038,48.9,168.4,168.36,24.58915969]
[1748537638247,48.9,168.4,168.39,21.63532096]
[1748537638854,15.93764739,168.42,168.39,21.63532096]
[1748537639033,15.93764739,168.42,168.41,21.63532096]
[1748537639235,38.88,168.42,168.41,21.63532096]
[1748537639457,10.0,168.43,168.41,21.63532096]
[1748537639635,10.0,168.43,168.42,21.63532096]
[1748537639840,10.0,168.44,168.42,21.63532096]
[1748537640040,10.0,168.44,168.43,21.63532096]
[1748537640334,48.86,168.44,168.43,21.63532096]
[1748537640534,10.0,168.43,168.42,21.63532096]
[1748537643967,15.9372812,168.43,168.39,116.11864886]
[1748537644262,10.0,168.4,168.39,89.7]
[1748537644562,48.8,168.4,168.39,111.33532096]
[1748537645062,48.8,168.4,168.39,21.63532096]
[1748537646375,38.8,168.4,168.39,21.63532096]
[1748537646674,48.8,168.4,168.39,21.63532096]
[1748537647248,38.8,168.4,168.39,21.63532096]
[1748537647448,48.8,168.4,168.39,21.63532096]
[1748537648255,48.8,168.4,168.36,100.64]
[1748537648459,48.8,168.4,168.39,21.63532096]
[1748537648657,10.0,168.39,168.36,10.94]
[1748537648855,10.0,168.37,168.36,32.57532096]
[1748537649195,10.0,168.37,168.36,21.63532096]
[1748537649370,49.02,168.38,168.36,21.63532096]
[1748537649541,49.02,168.38,168.34,89.7]
[1748537649542,10.0,168.37,168.34,89.7]
[1748537649744,10.0,168.37,168.36,21.63532096]
[1748537650351,10.0,168.36,168.34,89.7]
[1748537650564,39.1,168.35,168.34,89.7]
[1748537651851,39.1,168.35,168.34,111.33532096]
[1748537652850,39.1,168.35,168.34,135.92532861]
[1748537653048,10.0,168.39,168.35,18.64964886]
[1748537653253,10.0,168.39,168.38,21.63532096]
[1748537653455,39.04,168.39,168.38,21.63532096]
[1748537653883,39.08,168.39,168.38,111.33532096]
[1748537654247,10.0,168.4,168.38,89.7]
[1748537654453,49.1,168.4,168.39,21.63532096]
[1748537655559,10.0,168.41,168.39,21.63532096]
[1748537655861,49.06,168.4,168.39,21.63532096]
[1748537656550,54.99824228,168.4,168.39,21.63532096]
[1748537656871,10.0,168.39,168.38,89.7]
[1748537657053,10.0,168.38,168.37,32.57532096]
[1748537657250,49.04,168.38,168.37,10.94]
[1748537657450,49.04,168.38,168.34,89.7]
[1748537657667,49.04,168.38,168.36,21.63532096]
[1748537658071,15.93930035,168.37,168.36,21.63532096]
[1748537658276,15.93930035,168.37,168.34,89.7]
[1748537658454,15.93930035,168.37,168.36,21.63532096]
[1748537658661,54.95930035,168.37,168.36,21.63532096]
[1748537659460,49.02,168.37,168.36,111.33532096]
[1748537660783,54.95930035,168.37,168.36,111.33532096]
[1748537661368,49.02,168.37,168.36,111.33532096]
[1748537661570,48.94,168.37,168.36,111.33532096]
[1748537662088,48.94,168.37,168.36,89.7]
[1748537662258,48.94,168.37,168.35,21.63532096]
[1748537662461,15.93965312,168.36,168.35,21.63532096]
[1748537663066,10.0,168.35,168.34,21.63532096]
[1748537663375,48.92,168.35,168.34,21.63532096]
[1748537664260,38.92,168.35,168.34,21.63532096]
[1748537664455,48.92,168.35,168.32,108.34964886]
[1748537664661,5.94035879,168.34,168.32,89.7]
[1748537664860,38.88,168.33,168.32,89.7]
[1748537666181,38.88,168.33,168.32,111.33532096]
[1748537666712,44.82071169,168.33,168.32,111.33532096]
[1748537666872,38.88,168.33,168.32,111.33532096]
[1748537667181,44.82071169,168.33,168.32,111.33532096]
[1748537668125,38.88,168.33,168.32,111.33532096]
[1748537669989,44.82071169,168.33,168.32,111.33532096]
[1748537670212,38.92,168.34,168.32,111.33532096]
[1748537670413,54.86047933,168.34,168.32,111.33532096]
[1748537670614,54.86047933,168.34,168.33,21.63532096]
[1748537670919,10.0,168.33,168.32,89.7]
[1748537671090,10.0,168.33,168.32,111.33532096]
[1748537672629,15.94071169,168.33,168.32,89.7]
[1748537672813,15.94071169,168.33,168.32,111.33532096]
[1748537673692,15.94071169,168.33,168.31,11.0]
[1748537673693,10.0,168.32,168.31,21.63532096]
[1748537673897,48.86,168.32,168.31,21.63532096]
[1748537674910,10.0,168.3,168.27,92.36418576]
[1748537675109,10.0,168.3,168.29,21.63532096]
[1748537675294,48.82,168.3,168.29,21.63532096]
[1748537677424,54.76177064,168.3,168.29,21.63532096]
[1748537677734,10.0,168.29,168.27,92.36418576]
[1748537678024,38.78,168.28,168.27,92.36418576]
[1748537678240,48.78,168.28,168.27,113.99950672]
[1748537678916,48.78,168.28,168.27,92.36418576]
[1748537679268,48.78,168.28,168.27,113.99950672]
[1748537680108,10.0,168.28,168.27,113.99950672]
[1748537680306,48.74,168.28,168.27,113.99950672]
[1748537683633,48.74,168.28,168.27,92.36418576]
[1748537683798,48.74,168.28,168.27,113.99950672]
[1748537683996,54.68247682,168.28,168.27,113.99950672]
[1748537684814,44.68247682,168.28,168.27,113.99950672]
[1748537685009,48.74,168.28,168.27,113.99950672]
[1748537686827,54.68247682,168.28,168.27,113.99950672]
[1748537687023,48.74,168.28,168.27,113.99950672]
[1748537687217,10.0,168.28,168.27,113.99950672]
[1748537687427,48.62,168.28,168.27,113.99950672]